Cogmind - Beta 14 --- EXPLORER MODE // 2024.08.09 @ 10:54:57 Player: wolft Result: Self-destructed Performance ------------- Evolutions (2) 1000 Regions Visited (6) 1200 Robots Destroyed (26) 130 Value Destroyed (503) 503 Prototype IDs (25) 500 Alien Tech Used (0) 0 Bonus (300) 300 TOTAL SCORE: 3633 Bonus ------- Aligned with FarCom 300 Cogmind --------- Core Integrity 541/550 Matter 270/300 Energy 280/280 System Corruption 0% Temperature Cool (0) Movement Flying (29) Location -8/Materials Parts ------- > --- POWER (1) -------- Heavy Ion Engine > --- PROPULSION (4) --- Cesium-ion Thruster Cesium-ion Thruster Cesium-ion Thruster > --- UTILITY (5) ------ Heat Sink Lightpack 2.0 Improved Signal Interpreter > --- WEAPON (2) ------- (None) > --- INVENTORY (40) --- Improved Ion Engine Improved Ion Engine Light Fission Core Wheel Wheel Compact Wheel Heat Sink Large Storage Unit Weight Redist. System Visual Processing Unit Sensor Array Cloak of Protection Hardened Light Armor Plating Trap Reconfigurator Beam Rifle Field Laser Particle Cannon Peak State ------------ > --- POWER ------------ Heavy Ion Engine > --- PROPULSION ------- Wheel Wheel Wheel Compact Wheel > --- UTILITY ---------- Heat Sink Lightpack 2.0 Improved Signal Interpreter > --- WEAPON ----------- Field Laser Advanced Beam Cannon > --- INVENTORY -------- Improved Ion Engine Improved Ion Engine Light Fission Core Heat Sink Large Storage Unit Weight Redist. System Visual Processing Unit Sensor Array Improved Targeting Computer Cloak of Protection Hardened Light Armor Plating Trap Reconfigurator Beam Rifle Particle Cannon [Rating: 51] Favorites ----------- Power Improved Ion Engine Engine Improved Ion Engine Propulsion Wheel Wheel Wheel Flight Unit Cesium-ion Thruster Utility Heat Sink Device Heat Sink Storage Medium Storage Unit Processor Signal Interpreter Weapon Advanced Beam Cannon Energy Gun Field Laser Energy Cannon Advanced Beam Cannon Ballistic Gun Light Assault Rifle Ballistic Cannon Light Cannon Build | -11 -10 -9 -9 -9 -8 -8 ------- Run | Yrd Mat Mat Min Exi Min Mat Slots Evolved 5 | . 1 2 . . . 2 Power . | . . . . . . . Propulsion 2 | . 1 . . . . 1 Utility 3 | . . 2 . . . 1 Weapon . | . . . . . . . Parts Attached 33 | 8 3 11 1 1 . 9 Power 4 | 1 . 2 . . . 1 Engine 4 | 1 . 2 . . . 1 Core . | . . . . . . . Reactor . | . . . . . . . Propulsion 9 | 2 1 1 1 . . 4 Treads . | . . . . . . . Leg . | . . . . . . . Wheel 6 | 2 1 1 1 . . 1 Hover . | . . . . . . . Flight 3 | . . . . . . 3 Utility 10 | 2 . 4 . 1 . 3 Device 4 | 1 . 2 . . . 1 Storage 4 | 1 . 1 . 1 . 1 Processor 2 | . . 1 . . . 1 Hackware . | . . . . . . . Protection . | . . . . . . . Artifact . | . . . . . . . Weapon 10 | 3 2 4 . . . 1 Energy Gun 3 | 1 . 1 . . . 1 Energy Cannon 3 | . . 3 . . . . Ballistic Gun 2 | 2 . . . . . . Ballistic Cannon 2 | . 2 . . . . . Launcher . | . . . . . . . Special Weapon . | . . . . . . . Impact Weapon . | . . . . . . . Slashing Weapon . | . . . . . . . Piercing Weapon . | . . . . . . . Special Melee Weapon . | . . . . . . . Unidentified Prototypes 1 | . . 1 . . . . Parts Lost . | . . . . . . . Power . | . . . . . . . Propulsion . | . . . . . . . Utility . | . . . . . . . Weapon . | . . . . . . . Highest Loss Streak . | . . . . . . . To Critical Strikes . | . . . . . . . Average Slot Usage (%) 94 | . 100 99 100 100 100 82 Engine 9 | . 12 9 10 10 10 8 Wheel 30 | . 37 30 30 30 30 30 Device 16 | . 12 20 20 20 20 9 Storage 9 | . 12 10 10 10 10 8 Processor 8 | . . 10 10 10 10 8 Energy Gun 3 | . 12 4 . . . 4 Energy Cannon 14 | . . 12 20 20 20 10 Ballistic Cannon 1 | . 10 2 . . . . Peak Build Rating 51 | 10 11 17 15 20 20 51 Average Rating 23 | 6 10 15 15 17 20 46 On Entrance 13 | . 10 11 15 15 20 20 Naked Turns . | . . . . . . . Heaviest Build 45 | 19 21 31 27 37 37 45 Greatest Support 46 | 26 36 36 36 36 36 46 Greatest Overweight (x) 2 | 2 . . . 1 1 2 Average Overweight (x) . | . . . . . 1 . Largest Inventory Capacity 40 | 10 10 10 10 15 15 40 Average Capacity 17 | 8 10 10 10 13 15 35 Most Carried 18 | 10 10 10 10 15 15 18 Average Carried 11 | 3 9 9 10 11 15 13 Final Capacity 40 | 10 10 10 10 15 15 40 Final Carried 17 | 10 10 10 10 15 15 17 Class Distribution -------------------- 51% | Scavenger-Mutant 19% | Hauler-Mutant 15% | Scavenger-Skirmisher 11% | Hacker-Mutant Dominant Class ---------------- Hacker-Mutant | -10/Materials Scavenger-Skirmisher | -9/Materials Scavenger-Mutant | -9/Mines Scavenger-Mutant | -9/Exiles Scavenger-Skirmisher | -8/Mines Hauler-Mutant | -8/Materials Resources | -11 -10 -9 -9 -9 -8 -8 ----------- Run | Yrd Mat Mat Min Exi Min Mat Matter Collected 611 | 299 72 160 10 . . 70 Remotely . | . . . . . . . Salvage Created 827 | 208 138 377 26 . . 78 Parts 64 | 17 9 26 6 . . 6 Haulers Intercepted 2 | . 1 1 . . . . Recyclers Shooed 1 | 1 . . . . . . Parts Field Recycled . | . . . . . . . Retrieved Matter . | . . . . . . . Parts Self-Destructed . | . . . . . . . Prevented . | . . . . . . . Kills | -11 -10 -9 -9 -9 -8 -8 ------- Run | Yrd Mat Mat Min Exi Min Mat Combat Hostiles Destroyed 13 | . 3 9 . . . 1 Guns 2 | . 2 . . . . . Cannons 11 | . 1 9 . . . 1 Classes Destroyed 8 | 3 4 1 . . . . Worker 3 | 2 . 1 . . . . Tunneler 5 | 3 . . 2 . . . Hauler 2 | . 1 1 . . . . Recycler 1 | 1 . . . . . . Watcher 2 | . 1 . . . . 1 Swarmer 4 | . 1 3 . . . . Grunt 4 | . 2 2 . . . . Sentry 5 | . . 4 . . . 1 Best Kill Streak 3 | 3 3 3 1 . . 1 Combat Bots Only 3 | . 2 3 . . . 1 Max Kills in Single Turn 1 | 1 1 1 1 . . 1 Gunslinging . | . . . . . . . Exploded . | . . . . . . . Melee . | . . . . . . . Uniques/NPCs Destroyed . | . . . . . . . Combat | -11 -10 -9 -9 -9 -8 -8 -------- Run | Yrd Mat Mat Min Exi Min Mat Hostile Shots Fired 43 | . 11 24 . . . 8 Missed 14 | . 4 9 . . . 1 Damage Taken 265 | . 56 146 . . . 63 Core 38 | . 11 18 . . . 9 Absorbed by Shields . | . . . . . . . Ignored by Resistances 161 | . 35 89 . . . 37 Regen/Repaired (Parts) 21 | . . 21 . . . . Core Remaining (%) 96 | 100 95 . . . 95 . Volleys Fired 61 | 11 13 27 2 . . 8 Largest 2 | 2 2 2 2 . . 2 Hottest 136 | 70 85 136 136 . . 136 Shots Fired 117 | 22 24 51 4 . . 16 Gun 51 | 22 11 18 . . . . Cannon 66 | . 13 33 4 . . 16 Launcher . | . . . . . . . Special . | . . . . . . . Kinetic 42 | 19 13 10 . . . . Thermal 75 | 3 11 41 4 . . 16 Explosive . | . . . . . . . Electromagnetic . | . . . . . . . Robot Hit Streak 23 | 6 13 23 12 . . 14 Robot Miss Streak 4 | 2 4 1 . . . 2 Penetration Max . | . . . . . . . Secondary Targets . | . . . . . . . Shots Hit Robots 86 | 15 16 42 3 . . 10 Core Hits 35 | 9 7 15 2 . . 2 Critical Kills . | . . . . . . . Critical Parts Destroyed . | . . . . . . . Critical Strikes 3 | . 2 1 . . . . Burn 1 | . 1 . . . . . Blast 2 | . 1 1 . . . . Melee Attacks . | . . . . . . . Impact . | . . . . . . . Slashing . | . . . . . . . Piercing . | . . . . . . . Sneak Attacks . | . . . . . . . Combat Hostiles . | . . . . . . . Follow-up Attacks . | . . . . . . . Damage Inflicted 1372 | 121 243 742 62 . . 204 Guns 436 | 121 101 214 . . . . Cannons 936 | . 142 528 62 . . 204 Explosions . | . . . . . . . Melee . | . . . . . . . Ramming . | . . . . . . . Kinetic 417 | 96 142 179 . . . . Thermal 955 | 25 101 563 62 . . 204 Explosive . | . . . . . . . Electromagnetic . | . . . . . . . Impact . | . . . . . . . Slashing . | . . . . . . . Piercing . | . . . . . . . Highest Corruption . | . . . . . . . Average Corruption . | . . . . . . . Corruption Purged . | . . . . . . . Corruption Blocked . | . . . . . . . Overload Shots . | . . . . . . . Overflow Damage 19 | . . . . . . 19 Projectiles 19 | . . . . . . 19 Explosions . | . . . . . . . Melee . | . . . . . . . Knockbacks 1 | . 1 . . . . . Impact . | . . . . . . . Kinetic 1 | . 1 . . . . . Secondary . | . . . . . . . Self-Inflicted Damage . | . . . . . . . Shots . | . . . . . . . Rammed . | . . . . . . . Targets Rammed . | . . . . . . . Kicked . | . . . . . . . Crushed . | . . . . . . . Highest Temperature 276 | 60 137 276 39 . . 120 Average Temperature 65 | 29 55 77 21 . . 55 Received Heat Transfer 174 | . 42 105 . . . 27 Siege Activations . | . . . . . . . Robots Corrupted . | . . . . . . . Combat Hostiles . | . . . . . . . Parts Fried . | . . . . . . . Impact Corruptions . | . . . . . . . Robots Melted . | . . . . . . . Combat Hostiles . | . . . . . . . Parts Melted 3 | . . 1 . . . 2 Heat Transferred 2109 | 74 370 1184 111 . . 370 Parts Sabotaged . | . . . . . . . Parts Stolen . | . . . . . . . Parts Stripped . | . . . . . . . Power Chain Reactions . | . . . . . . . Alert | -11 -10 -9 -9 -9 -8 -8 ------- Run | Yrd Mat Mat Min Exi Min Mat Peak Influence 318 | 30 168 318 24 . . 83 Initial 50 | . 14 50 14 . . . Average 67 | 13 90 138 21 . . 22 Maximum Alert Level 1 | . . 1 . . . . Low Security (%) 84 | 100 100 55 100 . 100 100 Level 1 15 | . . 44 . . . . Level 2 . | . . . . . . . Level 3 . | . . . . . . . Level 4 . | . . . . . . . Level 5 . | . . . . . . . High Security . | . . . . . . . Max Security . | . . . . . . . Squads Dispatched . | . . . . . . . Investigation . | . . . . . . . Extermination . | . . . . . . . Reinforcement . | . . . . . . . Assault . | . . . . . . . Garrison . | . . . . . . . Intercept . | . . . . . . . Searches Triggered . | . . . . . . . Construction Impeded . | . . . . . . . Haulers Reinforced . | . . . . . . . Active Scanning Responses . | . . . . . . . Cargo Convoy Interrupts . | . . . . . . . Stealth | -11 -10 -9 -9 -9 -8 -8 --------- Run | Yrd Mat Mat Min Exi Min Mat Distress Signals 2 | . . 1 . . . 1 Communications Jammed . | . . . . . . . Distress Signals . | . . . . . . . Times Spotted 24 | . 7 11 . . . 6 Peak Tracking Total 4 | . 2 3 . . . 4 Tactical Retreats 3 | . 2 . . . . 1 Traps | -11 -10 -9 -9 -9 -8 -8 ------- Run | Yrd Mat Mat Min Exi Min Mat Traps Triggered 2 | . 1 1 . . . . Indirectly . | . . . . . . . Trap Hack Attempts . | . . . . . . . Triggered . | . . . . . . . Disarmed . | . . . . . . . Reprogrammed . | . . . . . . . Reused . | . . . . . . . Traps Extracted . | . . . . . . . Installed . | . . . . . . . Triggered . | . . . . . . . Machines | -11 -10 -9 -9 -9 -8 -8 ---------- Run | Yrd Mat Mat Min Exi Min Mat Machines Disabled . | . . . . . . . Max in Single Turn . | . . . . . . . Machines Repaired . | . . . . . . . Machines Dismantled . | . . . . . . . Machines Sabotaged . | . . . . . . . Overloaded Fab Kills . | . . . . . . . Hacking | -11 -10 -9 -9 -9 -8 -8 --------- Run | Yrd Mat Mat Min Exi Min Mat Machines Accessed 7 | . 1 2 . 3 . 1 Terminals 2 | . 1 1 . . . . Fabricators . | . . . . . . . Repair Stations 1 | . . 1 . . . . Recycling Units . | . . . . . . . Scanalyzers 1 | . . . . . . 1 Garrison Access . | . . . . . . . Total Hacks 30 | . 4 9 . 15 . 2 Successful 27 | . 4 6 . 15 . 2 Failed 3 | . . 3 . . . . Catastrophic . | . . . . . . . Database Lockouts . | . . . . . . . Manual 2 | . . . . 2 . . Terminals 8 | . 4 4 . . . . Fabricators . | . . . . . . . Repair Stations 5 | . . 5 . . . . Recycling Units . | . . . . . . . Scanalyzers 2 | . . . . . . 2 Garrison Access . | . . . . . . . Terminal Hacks 22 | . 4 3 . 15 . . Record 14 | . . . . 14 . . Terminal Index 1 | . 1 . . . . . Alert Level 1 | . . 1 . . . . Locate Traps 1 | . 1 . . . . . Patrol Status 1 | . 1 . . . . . Hauler Manifests 1 | . . 1 . . . . Zone Layout 2 | . 1 1 . . . . Derelict Proto ID Bank 1 | . . . . 1 . . Fabricator Hacks . | . . . . . . . Repair Station Hacks 3 | . . 3 . . . . Scan Component 2 | . . 2 . . . . Repair 1 | . . 1 . . . . Recycling Unit Hacks . | . . . . . . . Scanalyzer 2 | . . . . . . 2 Insert Component 1 | . . . . . . 1 Analyze 1 | . . . . . . 1 Garrison Access Hacks . | . . . . . . . Unauthorized Hacks . | . . . . . . . Terminals . | . . . . . . . Fabricators . | . . . . . . . Repair Stations . | . . . . . . . Recycling Units . | . . . . . . . Scanalyzers . | . . . . . . . Garrison Access . | . . . . . . . Data Cores Recovered . | . . . . . . . Used . | . . . . . . . Hacking Detections 3 | . 1 2 . . . . Full Trace Events . | . . . . . . . Feedback Events . | . . . . . . . Feedback Blocked . | . . . . . . . Robot Schematics Acquired . | . . . . . . . Robots Built . | . . . . . . . Authchips . | . . . . . . . Time . | . . . . . . . Total Robot Build Rating . | . . . . . . . Part Schematics Acquired 1 | . . . . . . 1 Parts Built . | . . . . . . . Authchips . | . . . . . . . Time . | . . . . . . . Total Part Build Rating . | . . . . . . . Parts Repaired 1 | . . 1 . . . . Time 44 | . . 44 . . . . Parts Recycled . | . . . . . . . Recycled Matter . | . . . . . . . Retrieved Matter . | . . . . . . . Retrieved Components . | . . . . . . . Parts Scanalyzed 1 | . . . . . . 1 Part Schematics Acquired 1 | . . . . . . 1 Parts Damaged . | . . . . . . . Bothacking | -11 -10 -9 -9 -9 -8 -8 ------------ Run | Yrd Mat Mat Min Exi Min Mat Used RIF Installer . | . . . . . . . Robots Hacked . | . . . . . . . Non-combat . | . . . . . . . Combat . | . . . . . . . Robot Hacks Applied . | . . . . . . . Relay Couplers Released . | . . . . . . . Fabnet Peak Effective % . | . . . . . . . Robots Rewired . | . . . . . . . Allies Hacked . | . . . . . . . Hacks Repelled . | . . . . . . . Allies | -11 -10 -9 -9 -9 -8 -8 -------- Run | Yrd Mat Mat Min Exi Min Mat Total Allies . | . . . . . . . Largest Group . | . . . . . . . Highest-Rated Group . | . . . . . . . Highest-Rated Ally . | . . . . . . . Total Orders . | . . . . . . . Ally Attacks . | . . . . . . . Total Damage . | . . . . . . . Kills . | . . . . . . . Allies Corrupted . | . . . . . . . Allies Melted . | . . . . . . . Intel | -11 -10 -9 -9 -9 -8 -8 ------- Run | Yrd Mat Mat Min Exi Min Mat Robot Analysis Total . | . . . . . . . Derelict Logs Recovered . | . . . . . . . Drone Launches . | . . . . . . . Drone Recoveries . | . . . . . . . Exploration | -11 -10 -9 -9 -9 -8 -8 ------------- Run | Yrd Mat Mat Min Exi Min Mat Turns Passed 2441 | 132 157 582 154 742 15 659 Spaces Moved 1889 | 81 112 348 171 776 15 386 Core 20 | 20 . . . . . . Treads . | . . . . . . . Legs . | . . . . . . . Wheels 1737 | 61 112 348 171 776 15 254 Hover . | . . . . . . . Flight 132 | . . . . . . 132 Fastest Speed 29 | 50 86 86 86 86 101 29 Average Speed 86 | 100 86 86 86 94 101 67 Slowest Speed 200 | 150 86 86 86 101 101 200 Overloaded Moves . | . . . . . . . Propulsion Burnouts . | . . . . . . . Robots Hopped . | . . . . . . . Cave-ins Triggered . | . . . . . . . Exploration Rate (%) 32 | 5 26 24 49 91 12 19 Regions Visited 6 Branch Regions 3 Pre-discovered Areas . | . . . . . . . Known Exits Taken 6 | 1 1 1 1 1 1 . Unknown Exits Taken . | . . . . . . . Scrap Searched . | . . . . . . . Spaces Dug . | . . . . . . . Terrain Destroyed . | . . . . . . . Melee . | . . . . . . . Projectile . | . . . . . . . AOE . | . . . . . . . Terrain Rammed . | . . . . . . . Walls Destroyed . | . . . . . . . Machines Disabled . | . . . . . . . Actions | -11 -10 -9 -9 -9 -8 -8 --------- Run | Yrd Mat Mat Min Exi Min Mat Total 2584 | 109 151 584 174 782 14 770 Wait 527 | . 12 177 . . . 338 Move 1883 | 80 111 347 170 775 14 386 Hop . | . . . . . . . Pick Up 48 | 10 6 9 . 4 . 19 Fast Attach 17 | 7 2 6 . . . 2 Attach 9 | . 1 3 . . . 5 Detach 1 | . . . . . . 1 Swap 7 | 1 . 2 1 1 . 2 Drop 31 | . 6 13 1 2 . 9 Fire 61 | 11 13 27 2 . . 8 Melee . | . . . . . . . Ram . | . . . . . . . Kick . | . . . . . . . Crush . | . . . . . . . Escape Stasis . | . . . . . . . Rewire . | . . . . . . . Trap . | . . . . . . . Miscellaneous . | . . . . . . . Route ------- -11/Scrapyard -10/Materials (discovered 2 exits: *Mat / *Min) -9/Materials -9/Mines -9/Exiles (discovered 2 exits: *Min x2) -8/Mines -8/Materials History --------- Turn | Location | Event 7 | -11/Scrapyard | Identified exit to Materials 7 | -11/Scrapyard | Discovered exit to Materials (range 16) 133 | -11/Scrapyard | Entered Materials 133 | -10/Materials | Evolved 1 slot: Propulsion x1 181 | -10/Materials | Identified exit to Mines 181 | -10/Materials | Discovered exit to Mines (range 16) 237 | -10/Materials | Identified exit to Materials 237 | -10/Materials | Discovered exit to Materials (range 13) 290 | -10/Materials | Entered another Materials area 290 | -9/Materials | Evolved 2 slots: Utility x2 427 | -9/Materials | Identified exit to Mines 427 | -9/Materials | Discovered exit to Mines (range 13) 495 | -9/Materials | Repaired Broken Imp. Ion Engine 584 | -9/Materials | Build established: Scavenger-Skirmisher 872 | -9/Materials | Entered Mines 922 | -9/Mines | Build established: Scavenger-Mutant 1022 | -9/Mines | Deemed a non-threat by the Exiles lab entrance 1022 | -9/Mines | Identified exit to Exiles 1022 | -9/Mines | Discovered exit to Exiles (range 5) 1026 | -9/Mines | Entered Exiles 1052 | -9/Exiles | Met 8R-AWN 1068 | -9/Exiles | Met EX-HEX 1106 | -9/Exiles | Met EX-DEC 1140 | -9/Exiles | Visited The Gauntlet 1284 | -9/Exiles | Identified exit to Mines 1284 | -9/Exiles | Discovered exit to Mines (range 14) 1402 | -9/Exiles | Met EX-BIN 1506 | -9/Exiles | Aligned with FarCom system 1507 | -9/Exiles | Given EX-Vault access code 1531 | -9/Exiles | Opened EX-Vault 1536 | -9/Exiles | Found Prototype Device 1539 | -9/Exiles | Found Prototype Device 1542 | -9/Exiles | Identified Cloak of Protection 1542 | -9/Exiles | Identified Trap Reconfigurator 1546 | -9/Exiles | Found Lightpack 2.0 1569 | -9/Exiles | Warned to stay clear of 0b10 Research branches 1638 | -9/Exiles | Discovered exit to Mines (range 14) 1768 | -9/Exiles | Stole three prototypes: Lightpack 2.0, Cloak of Protection, Trap Reconfigurator 1768 | -9/Exiles | Entered Mines 1768 | -8/Mines | Identified exit to Materials 1768 | -8/Mines | Discovered exit to Materials (range 10) 1783 | -8/Mines | Entered Materials 1783 | -8/Materials | Evolved 2 slots: Propulsion x1, Utility x1 2209 | -8/Materials | Build established: Hauler-Mutant 2442 | -8/Materials | Self-destructed Last Messages --------------- 02019_ K-01 Serf cleans the Processing Tank. 02052_ Beam Rifle melted. 02052_ Y-45 Defender destroyed. 02057_ Acquired 18 matter. 02127_ K-01 Serf collects debris. 02382_ Dropped Adv. Beam Cannon. 02383_ Dropped Field Laser. 02383_ Acquired Cesium-ion Thruster. 02385_ Acquired Field Laser. 02388_ Dropped Wheel. 02389_ Acquired Cesium-ion Thruster. 02390_ Dropped Wheel. 02393_ Acquired Cesium-ion Thruster. 02393_ R-06 Scavenger collects Adv. Beam Cannon. 02396_ Acquired Wheel. 02397_ R-06 Scavenger collects Wheel. 02401_ Acquired Wheel. Imp. Targeting Computer swallowed by quantum anomaly within Lightpack 2.0. Map ----- +----------------------------------------------------+ | ????????????????????????????????????????????????? | | ???????????????????????????????????????????????? | | ??????????????????????????????????????????? ??## | | ?????????????????????????????????????????# ??? | | ?????????????????????????????????????????# ??? | | ?????????????????????????????????????????# ??? | | ?????????????????????????????????????????? ! ??? | | ??????????????????????????????????????????] ??? | | ????????????????????????????############### #??? | | ????????????????????????????# ! =# ## #??? | | ????????????????????????????# #= """## #??? | | ????????????????????????????# """ # """## #??? | | ????????????????????????????# """ # """## #??? | | ????????????????????????????# """ # ## #??? | | ????????????????????????????# # ! ## #??? | | ??????????????????????????#######+######+## #### | | ???????????????????######## | | ???????????????????# # | | ???????????????????# """ # | | ???????????????????# """ + ###+######+######### | | ?????????###########= """?# # ## #??????? | | ?????????# # ???# # ## #??????? | | ?????????# "" """ #+###### #""" ## #??????? | | ?????????# "G """ # #""" ## #??????? | | ?????????# "" """=+% #""" ## #??????? | | ?????????# """ # @ # ## #??????? | | ?????????# """ # ###+############ #??????? | | ?????????# # # = ######??????? | | ?????????# # # #???????????? | | ?????????#####+##### # """ """ ""#???????????? | | ????????????# # """ """ T"#???????????? | | ????????????# + """ """ ""????????????? | | ????????????# # = ????????????? | | ????????????# #####+############Y#?????????????? | | ????????????# # #??????????????????????? | | ????????????# # """ #??????????????????????? | | ????????????# # """ #??????????????????????? | | ????????????# # """ #??????????????????????? | | ????????????# #"S #??????????????????????? | | ????????????# #""" #??????????????????????? | | ????????????# # "" % #??????????????????????? | | ????????????# # #??????????????????????? | | ????????????# ###########??????????????????????? | | ????????????# #????????????????????????????????? | | ????????????#####????????????????????????????????? | | ?????????????????????????????????????????????????? | | ?????????????????????????????????????????????????? | | ?????????????????????????????????????????????????? | | ?????????????????????????????????????????????????? | | ?????????????????????????????????????????????????? | +----------------------------------------------------+ Best States ------------- Heat Dissipation 41 Energy Generation 14 Energy Capacity 280 Matter Stores 300 Matter Capacity 300 Sight Range 16 Robot Scan Range 14 Terrain Scan Range 16 Terrain Scan Density 10 Cloak Strength 5 Resistance: KI 35 Resistance: TH 35 Resistance: EX 35 Resistance: EM 35 Resistance: I 35 Resistance: S 35 Resistance: P 35 Evasion (%) 64 Offensive Hacking 20 Item Schematics ----------------- Hvy. Ion Engine | -8/Materials | Scanalyzed Robot Schematics ------------------ None Fabricated ------------ Nothing Alien Tech Used ----------------- None Achievements -------------- None Challenges ------------ None Game ------ Seed ExpertCouplerInitializer Manual? 0 Play Time 00:29:36 Cumulative 51.5 hours Start 2024.08.09 @ 10:26:22 End 2024.08.09 @ 10:54:57 Sessions 1 Manual Loads 0 Difficulty Explorer Special Mode None Game No. 94 Rogue 6 Adventurer 26 Explorer 62 Win Type - Total 1 Types 1/0/0/0/0/0/0/0/0 Lore% 17 Gallery% 39 Achievement% 36 Wizard Run 0 Options --------- Layout 1 ASCII 0 Keyboard 0 Movement Mouse Keybinds 0 Fullscreen 1 Font 24/Smallcaps Map View 50x35 Zoom Use 0% Tactical HUD 1 Map Filters NONE Filters NONE Steam 1 RUN: 1bab81cd-827a-4658-a565-ec760f35caea